[Event "*** Titled Tuesday Blitz"]
[Site "Chess.com"]
[Date "2018.06.05"]
[Round "10"]
[White "Colombiano07"]
[Black "saraswathii"]
[Result "0-1"]
[WhiteElo "2235"]
[BlackElo "2303"]
[TimeControl "180+2"]
[EndTime "15:25:03 PDT"]
[Termination "saraswathii won by resignation"]

1. e4 {[%clk 0:03:01.5]} 1... c5 {[%clk 0:03:00.4]} 2. Nc3 {[%clk 0:03:02.1]}
2... e6 {[%clk 0:03:01.3]} 3. Nge2 {[%clk 0:03:01.4]} 3... Nc6 {[%clk
0:03:00.5]} 4. g3 {[%clk 0:03:01.6]} 4... Nf6 {[%clk 0:03:00.4]} 5. Bg2 {[%clk
0:03:02.4]} 5... d5 {[%clk 0:02:53.9]} 6. exd5 {[%clk 0:03:02.8]} 6... exd5
{[%clk 0:02:53.9]} 7. d4 {[%clk 0:03:04]} 7... c4 {[%clk 0:02:54.4]} 8. O-O
{[%clk 0:03:04.3]} 8... Be6 {[%clk 0:02:55.2]} 9. b3 {[%clk 0:03:05.2]} 9...
cxb3 {[%clk 0:02:55.2]} 10. axb3 {[%clk 0:03:06.4]} 10... Qd7 {[%clk 0:02:56.1]}
11. Nf4 {[%clk 0:03:06.2]} 11... Bb4 {[%clk 0:02:51.6]} 12. Bb2 {[%clk
0:03:03.2]} 12... O-O {[%clk 0:02:51.2]} 13. Re1 {[%clk 0:02:54.8]} 13... Bg4
{[%clk 0:02:46.2]} 14. Bf3 {[%clk 0:02:43.1]} 14... Bxf3 {[%clk 0:02:40]} 15.
Qxf3 {[%clk 0:02:45]} 15... Nxd4 {[%clk 0:02:39.7]} 16. Qd3 {[%clk 0:02:46.5]}
16... Ne6 {[%clk 0:02:29.8]} 17. Ncxd5 {[%clk 0:02:29.7]} 17... Nxd5 {[%clk
0:02:06.9]} 18. Nxd5 {[%clk 0:02:28.4]} 18... Qd6 {[%clk 0:02:01.6]} 19. Nxb4
{[%clk 0:02:26.8]} 19... Qxb4 {[%clk 0:01:59.8]} 20. Re4 {[%clk 0:02:19.5]}
20... Qb6 {[%clk 0:01:54.1]} 21. Rg4 {[%clk 0:02:09.8]} 21... Rad8 {[%clk
0:01:46.5]} 22. Qc3 {[%clk 0:02:09.2]} 22... f6 {[%clk 0:01:43.4]} 23. Qc4
{[%clk 0:02:02.8]} 23... Rc8 {[%clk 0:01:40.6]} 24. Qd5 {[%clk 0:01:38]} 24...
Rc5 {[%clk 0:01:15.9]} 25. Qe4 {[%clk 0:01:20.8]} 25... Ng5 {[%clk 0:01:10.2]}
26. Qe7 {[%clk 0:01:09.4]} 26... Rc7 {[%clk 0:00:54.1]} 27. Qe2 {[%clk
0:00:57.1]} 27... Rfc8 {[%clk 0:00:38.8]} 28. c4 {[%clk 0:00:37.3]} 28... Qxb3
{[%clk 0:00:34.8]} 29. Rxa7 {[%clk 0:00:37.8]} 29... Qb6 {[%clk 0:00:27.7]} 30.
Ra1 {[%clk 0:00:31.4]} 30... Qc6 {[%clk 0:00:28.4]} 31. Rxg5 {[%clk 0:00:17.3]}
31... fxg5 {[%clk 0:00:28.5]} 32. Rc1 {[%clk 0:00:18]} 32... Re8 {[%clk
0:00:21.1]} 33. Qg4 {[%clk 0:00:17]} 33... Qc5 {[%clk 0:00:19.4]} 34. Bd4 {[%clk
0:00:15.9]} 34... Qa5 {[%clk 0:00:19.6]} 35. h4 {[%clk 0:00:13.7]} 35... gxh4
{[%clk 0:00:16.9]} 36. Qxh4 {[%clk 0:00:13.5]} 36... Re1+ {[%clk 0:00:15.7]} 37.
Rxe1 {[%clk 0:00:13.8]} 37... Qxe1+ {[%clk 0:00:17.6]} 38. Kg2 {[%clk
0:00:15.4]} 38... Qe8 {[%clk 0:00:18.2]} 39. Qf4 {[%clk 0:00:13.4]} 39... Rxc4
{[%clk 0:00:17.3]} 40. Qe5 {[%clk 0:00:10.4]} 40... Qxe5 {[%clk 0:00:17.2]} 41.
Bxe5 {[%clk 0:00:12.3]} 41... b5 {[%clk 0:00:18.4]} 0-1

[Event "*** Titled Tuesday Blitz"]
[Site "Chess.com"]
[Date "2018.06.05"]
[Round "10"]
[White "AndreyOstrovskiy"]
[Black "SamCopeland"]
[Result "1/2-1/2"]
[WhiteElo "2648"]
[BlackElo "2055"]
[TimeControl "180+2"]
[EndTime "15:25:07 PDT"]
[Termination "Game drawn by repetition"]

1. e4 {[%clk 0:03:01.9]} 1... e6 {[%clk 0:02:54.4]} 2. d4 {[%clk 0:03:02.2]}
2... d5 {[%clk 0:02:53.2]} 3. Nc3 {[%clk 0:03:03.2]} 3... Nf6 {[%clk 0:02:52.5]}
4. e5 {[%clk 0:03:04.4]} 4... Nfd7 {[%clk 0:02:53.3]} 5. f4 {[%clk 0:03:05.6]}
5... c5 {[%clk 0:02:53.9]} 6. Nf3 {[%clk 0:03:07.1]} 6... Nc6 {[%clk 0:02:53.4]}
7. Be3 {[%clk 0:03:08.6]} 7... a6 {[%clk 0:02:53.3]} 8. Qd2 {[%clk 0:03:09.7]}
8... b5 {[%clk 0:02:40.8]} 9. dxc5 {[%clk 0:03:10.8]} 9... Bxc5 {[%clk
0:02:39.8]} 10. Ne2 {[%clk 0:03:11.5]} 10... Qb6 {[%clk 0:02:31.3]} 11. Ned4
{[%clk 0:03:12.2]} 11... Bb7 {[%clk 0:02:26.1]} 12. c3 {[%clk 0:03:12.1]} 12...
O-O {[%clk 0:02:24.7]} 13. Bd3 {[%clk 0:03:12.1]} 13... f6 {[%clk 0:02:11.5]}
14. b4 {[%clk 0:03:08.1]} 14... Nxd4 {[%clk 0:02:03]} 15. Nxd4 {[%clk
0:02:40.3]} 15... Bxd4 {[%clk 0:01:37.9]} 16. Bxd4 {[%clk 0:02:38.7]} 16... Qc7
{[%clk 0:01:36.6]} 17. Qe3 {[%clk 0:02:30]} 17... fxe5 {[%clk 0:01:34.3]} 18.
fxe5 {[%clk 0:02:30.7]} 18... Rf7 {[%clk 0:01:20.6]} 19. Qh3 {[%clk 0:02:15.9]}
19... Nf8 {[%clk 0:01:20.7]} 20. Kd2 {[%clk 0:02:06.4]} 20... Re8 {[%clk
0:01:08.3]} 21. Rhf1 {[%clk 0:02:03.2]} 21... Ree7 {[%clk 0:01:07.3]} 22. Rae1
{[%clk 0:01:48.8]} 22... Bc8 {[%clk 0:01:03.2]} 23. Bc5 {[%clk 0:01:48.1]} 23...
Rxf1 {[%clk 0:01:01.6]} 24. Rxf1 {[%clk 0:01:47.3]} 24... Rf7 {[%clk 0:01:02.5]}
25. Bd6 {[%clk 0:01:10.2]} 25... Qa7 {[%clk 0:00:55]} 26. Bc5 {[%clk 0:00:43.3]}
26... Qc7 {[%clk 0:00:53.7]} 27. Rxf7 {[%clk 0:00:43.4]} 27... Qxf7 {[%clk
0:00:52.6]} 28. Ke2 {[%clk 0:00:31.6]} 28... Ng6 {[%clk 0:00:49.2]} 29. g3
{[%clk 0:00:21.2]} 29... d4 {[%clk 0:00:28.4]} 30. Bxd4 {[%clk 0:00:22]} 30...
Bb7 {[%clk 0:00:29.1]} 31. Qf1 {[%clk 0:00:23]} 31... Qc7 {[%clk 0:00:17.6]} 32.
Qh3 {[%clk 0:00:20.1]} 32... Qf7 {[%clk 0:00:17.1]} 33. Qf1 {[%clk 0:00:20.4]}
33... Qc7 {[%clk 0:00:17.8]} 34. Kd2 {[%clk 0:00:14.9]} 34... Nxe5 {[%clk
0:00:16.7]} 35. Bxe5 {[%clk 0:00:13.9]} 35... Qxe5 {[%clk 0:00:18.6]} 36. Qh3
{[%clk 0:00:14.5]} 36... Bd5 {[%clk 0:00:18]} 37. Qxh7+ {[%clk 0:00:14.9]} 37...
Kf7 {[%clk 0:00:18]} 38. Qg6+ {[%clk 0:00:15.9]} 38... Ke7 {[%clk 0:00:19.1]}
39. h4 {[%clk 0:00:16.2]} 39... Bxa2 {[%clk 0:00:17.8]} 40. h5 {[%clk
0:00:17.6]} 40... Kd6 {[%clk 0:00:17.9]} 41. h6 {[%clk 0:00:15.6]} 41... gxh6
{[%clk 0:00:18.2]} 42. Qxh6 {[%clk 0:00:16.8]} 42... Qxg3 {[%clk 0:00:18.5]} 43.
Qf8+ {[%clk 0:00:17.9]} 43... Kd7 {[%clk 0:00:16.8]} 44. Qf7+ {[%clk 0:00:19]}
44... Kd6 {[%clk 0:00:17.6]} 45. Qf8+ {[%clk 0:00:20.2]} 45... Kd7 {[%clk
0:00:18.7]} 46. Qf7+ {[%clk 0:00:21.5]} 46... Kd6 {[%clk 0:00:19.8]} 47. Qf8+
{[%clk 0:00:22.7]} 47... Kd7 {[%clk 0:00:20.8]} 1/2-1/2

[Event "*** Titled Tuesday Blitz"]
[Site "Chess.com"]
[Date "2018.06.05"]
[Round "10"]
[White "AlexTruskavetsky"]
[Black "sergeikim"]
[Result "0-1"]
[WhiteElo "2282"]
[BlackElo "2372"]
[TimeControl "180+2"]
[EndTime "15:25:26 PDT"]
[Termination "sergeikim won on time"]

1. d4 {[%clk 0:03:01.9]} 1... Nf6 {[%clk 0:02:59.1]} 2. c4 {[%clk 0:03:02.1]}
2... g6 {[%clk 0:03:00.2]} 3. Nc3 {[%clk 0:03:02.5]} 3... Bg7 {[%clk 0:03:00.8]}
4. g3 {[%clk 0:03:03]} 4... O-O {[%clk 0:03:01.1]} 5. Bg2 {[%clk 0:03:04.3]}
5... d6 {[%clk 0:03:02]} 6. Nf3 {[%clk 0:03:05.7]} 6... Nbd7 {[%clk 0:03:02.5]}
7. O-O {[%clk 0:03:05.4]} 7... e5 {[%clk 0:03:03.4]} 8. h3 {[%clk 0:03:06.1]}
8... exd4 {[%clk 0:03:04.4]} 9. Nxd4 {[%clk 0:03:06.1]} 9... Re8 {[%clk
0:03:05.9]} 10. b3 {[%clk 0:02:58.6]} 10... Nc5 {[%clk 0:03:05.2]} 11. Bb2
{[%clk 0:02:58.7]} 11... c6 {[%clk 0:03:05.4]} 12. Qc2 {[%clk 0:02:52.7]} 12...
a5 {[%clk 0:03:00.1]} 13. Rad1 {[%clk 0:02:47.6]} 13... Qe7 {[%clk 0:03:00.7]}
14. Rfe1 {[%clk 0:02:44.6]} 14... Nfe4 {[%clk 0:03:00.2]} 15. Nxe4 {[%clk
0:02:35.9]} 15... Nxe4 {[%clk 0:02:59.3]} 16. e3 {[%clk 0:02:23.3]} 16... a4
{[%clk 0:02:57.2]} 17. b4 {[%clk 0:02:15.7]} 17... a3 {[%clk 0:02:55.7]} 18. Ba1
{[%clk 0:02:14.8]} 18... h5 {[%clk 0:02:54.5]} 19. Rd3 {[%clk 0:02:06]} 19...
Ng5 {[%clk 0:02:19.7]} 20. h4 {[%clk 0:02:02.5]} 20... Ne4 {[%clk 0:02:19.4]}
21. Qe2 {[%clk 0:01:39.5]} 21... Ra4 {[%clk 0:01:54.7]} 22. Nc2 {[%clk
0:01:34.3]} 22... Bxa1 {[%clk 0:01:39.4]} 23. Rxa1 {[%clk 0:01:29.2]} 23... Bg4
{[%clk 0:01:23.2]} 24. f3 {[%clk 0:01:22.3]} 24... Nxg3 {[%clk 0:01:22.9]} 25.
Qf2 {[%clk 0:01:23.2]} 25... Bf5 {[%clk 0:01:17.2]} 26. e4 {[%clk 0:01:20.3]}
26... Qxh4 {[%clk 0:01:15.5]} 27. exf5 {[%clk 0:01:17.6]} 27... Re2 {[%clk
0:01:14.7]} 28. Qb6 {[%clk 0:01:00.2]} 28... Rxc2 {[%clk 0:01:10.2]} 29. fxg6
{[%clk 0:00:43.2]} 29... Ne2+ {[%clk 0:01:07.7]} 30. Kf1 {[%clk 0:00:41.3]}
30... Ng3+ {[%clk 0:00:49]} 31. Kg1 {[%clk 0:00:39.2]} 31... Ne2+ {[%clk
0:00:45.7]} 32. Kf1 {[%clk 0:00:38.4]} 32... Nf4 {[%clk 0:00:21.5]} 33. gxf7+
{[%clk 0:00:33.6]} 33... Kxf7 {[%clk 0:00:21]} 34. Qc7+ {[%clk 0:00:28.9]} 34...
Qe7 {[%clk 0:00:18.2]} 35. Qxe7+ {[%clk 0:00:24.4]} 35... Kxe7 {[%clk
0:00:19.1]} 36. Re3+ {[%clk 0:00:16.1]} 36... Kd7 {[%clk 0:00:19.1]} 37. Bh1
{[%clk 0:00:16.9]} 37... Rxb4 {[%clk 0:00:19.4]} 38. Rae1 {[%clk 0:00:16.8]}
38... Rbb2 {[%clk 0:00:16.8]} 39. Re7+ {[%clk 0:00:10.2]} 39... Kc8 {[%clk
0:00:16.8]} 0-1

[Event "*** Titled Tuesday Blitz"]
[Site "Chess.com"]
[Date "2018.06.05"]
[Round "10"]
[White "TigranLPetrosyan"]
[Black "FairChess_on_YouTube"]
[Result "1-0"]
[WhiteElo "2830"]
[BlackElo "2939"]
[TimeControl "180+2"]
[EndTime "15:25:29 PDT"]
[Termination "TigranLPetrosyan won by resignation"]

1. Nf3 {[%clk 0:03:01.9]} 1... b6 {[%clk 0:02:58.7]} 2. g3 {[%clk 0:03:03.8]}
2... Bb7 {[%clk 0:02:59.6]} 3. Bg2 {[%clk 0:03:05.3]} 3... Nf6 {[%clk
0:03:00.4]} 4. O-O {[%clk 0:03:06.9]} 4... g6 {[%clk 0:03:01.7]} 5. d3 {[%clk
0:03:08.5]} 5... Bg7 {[%clk 0:03:02.5]} 6. e4 {[%clk 0:03:10.1]} 6... O-O {[%clk
0:03:03.7]} 7. Re1 {[%clk 0:03:10]} 7... c5 {[%clk 0:03:04.5]} 8. Nc3 {[%clk
0:03:10.6]} 8... d6 {[%clk 0:03:03.9]} 9. a4 {[%clk 0:03:09.9]} 9... Nc6 {[%clk
0:03:04.4]} 10. Bf4 {[%clk 0:03:10.3]} 10... Nd7 {[%clk 0:03:03.6]} 11. Qd2
{[%clk 0:02:56.2]} 11... Nd4 {[%clk 0:03:04.1]} 12. Nxd4 {[%clk 0:02:41.1]}
12... cxd4 {[%clk 0:03:06]} 13. Nb5 {[%clk 0:02:41.9]} 13... a6 {[%clk
0:03:03.4]} 14. Na3 {[%clk 0:02:40.7]} 14... Qc7 {[%clk 0:02:55.8]} 15. Bh6
{[%clk 0:02:39.7]} 15... Rac8 {[%clk 0:02:43.9]} 16. Bxg7 {[%clk 0:02:40.5]}
16... Kxg7 {[%clk 0:02:45.7]} 17. f4 {[%clk 0:02:41.9]} 17... e5 {[%clk
0:02:45.8]} 18. Nc4 {[%clk 0:02:26.3]} 18... b5 {[%clk 0:02:40.9]} 19. axb5
{[%clk 0:02:26.3]} 19... axb5 {[%clk 0:02:42.8]} 20. Na5 {[%clk 0:02:27.9]}
20... Nc5 {[%clk 0:02:33.5]} 21. Rf1 {[%clk 0:02:12.9]} 21... f6 {[%clk
0:02:31.5]} 22. Qb4 {[%clk 0:02:07.6]} 22... Qb6 {[%clk 0:02:23.9]} 23. Kh1
{[%clk 0:01:47.7]} 23... Na6 {[%clk 0:02:16.6]} 24. Qd2 {[%clk 0:01:44.8]} 24...
Nc5 {[%clk 0:02:13.9]} 25. Qb4 {[%clk 0:01:45.7]} 25... Na6 {[%clk 0:02:14.5]}
26. Qd2 {[%clk 0:01:45.8]} 26... Nc5 {[%clk 0:02:15.4]} 27. Rf2 {[%clk 0:01:40]}
27... Ra8 {[%clk 0:02:12.8]} 28. b4 {[%clk 0:01:38.7]} 28... Na4 {[%clk
0:02:11.6]} 29. Raf1 {[%clk 0:01:36.5]} 29... Nc3 {[%clk 0:02:11.3]} 30. g4
{[%clk 0:01:32.2]} 30... Rae8 {[%clk 0:01:34.2]} 31. g5 {[%clk 0:01:26.2]} 31...
Bc8 {[%clk 0:01:29.8]} 32. gxf6+ {[%clk 0:01:22.1]} 32... Rxf6 {[%clk
0:01:30.3]} 33. fxe5 {[%clk 0:01:21.8]} 33... Rxf2 {[%clk 0:01:28.8]} 34. Qxf2
{[%clk 0:01:23.7]} 34... Be6 {[%clk 0:01:19]} 35. Qf6+ {[%clk 0:01:23.3]} 35...
Kg8 {[%clk 0:01:20.2]} 36. Nb3 {[%clk 0:01:11.9]} 36... Qd8 {[%clk 0:00:26.1]}
37. Nxd4 {[%clk 0:01:07.8]} 37... Qxf6 {[%clk 0:00:25.3]} 38. Rxf6 {[%clk
0:01:09.7]} 38... Bd7 {[%clk 0:00:20]} 39. Rxd6 {[%clk 0:01:04]} 39... Re7
{[%clk 0:00:21.3]} 40. e6 {[%clk 0:00:57.9]} 40... Be8 {[%clk 0:00:22.3]} 41.
Kg1 {[%clk 0:00:50.3]} 41... Kf8 {[%clk 0:00:18.8]} 42. Kf2 {[%clk 0:00:50.6]}
42... Ra7 {[%clk 0:00:19.5]} 43. Rd8 {[%clk 0:00:46.6]} 43... Ke7 {[%clk
0:00:19.7]} 44. Rc8 {[%clk 0:00:47.1]} 44... Na2 {[%clk 0:00:18]} 45. c3 {[%clk
0:00:48]} 45... Ra3 {[%clk 0:00:17.6]} 46. Ne2 {[%clk 0:00:37.2]} 46... g5
{[%clk 0:00:13.3]} 47. Bh3 {[%clk 0:00:38.2]} 47... Bh5 {[%clk 0:00:13.6]} 48.
Rc7+ {[%clk 0:00:39.2]} 48... Kd8 {[%clk 0:00:12.7]} 49. Rd7+ {[%clk 0:00:35.8]}
49... Ke8 {[%clk 0:00:14.1]} 50. Nd4 {[%clk 0:00:37.1]} 50... g4 {[%clk
0:00:11.8]} 51. Nf5 {[%clk 0:00:36.4]} 51... gxh3 {[%clk 0:00:11.7]} 52. Rxh7
{[%clk 0:00:33.5]} 1-0

[Event "*** Titled Tuesday Blitz"]
[Site "Chess.com"]
[Date "2018.06.05"]
[Round "10"]
[White "Swarnapuri"]
[Black "Durarbayli"]
[Result "0-1"]
[WhiteElo "2488"]
[BlackElo "2669"]
[TimeControl "180+2"]
[EndTime "15:25:52 PDT"]
[Termination "Durarbayli won on time"]

1. d4 {[%clk 0:03:01.6]} 1... Nf6 {[%clk 0:02:25.1]} 2. Bf4 {[%clk 0:03:00.9]}
2... g6 {[%clk 0:02:26.9]} 3. e3 {[%clk 0:03:02.3]} 3... d6 {[%clk 0:02:28.2]}
4. Nf3 {[%clk 0:03:03.9]} 4... Bg7 {[%clk 0:02:30]} 5. h3 {[%clk 0:03:04.8]}
5... O-O {[%clk 0:02:31.4]} 6. Be2 {[%clk 0:03:06.2]} 6... c5 {[%clk 0:02:32.8]}
7. c3 {[%clk 0:03:07.2]} 7... Nc6 {[%clk 0:02:33.3]} 8. O-O {[%clk 0:03:06.8]}
8... Qb6 {[%clk 0:02:32.2]} 9. Nbd2 {[%clk 0:03:07]} 9... Be6 {[%clk 0:02:24]}
10. Ng5 {[%clk 0:03:07.9]} 10... Bd7 {[%clk 0:02:23.7]} 11. Nc4 {[%clk
0:03:07.4]} 11... Qd8 {[%clk 0:02:23.7]} 12. dxc5 {[%clk 0:03:07]} 12... dxc5
{[%clk 0:02:24.3]} 13. a4 {[%clk 0:03:00.4]} 13... h6 {[%clk 0:02:22.2]} 14. Nf3
{[%clk 0:03:00.8]} 14... Be6 {[%clk 0:02:22.8]} 15. Nfe5 {[%clk 0:03:00.3]}
15... Nxe5 {[%clk 0:02:08.7]} 16. Bxe5 {[%clk 0:02:58.7]} 16... Bd5 {[%clk
0:02:03.5]} 17. Qc2 {[%clk 0:02:49]} 17... Be4 {[%clk 0:02:02.7]} 18. Qb3 {[%clk
0:02:48.6]} 18... Qc8 {[%clk 0:01:53.8]} 19. Nd2 {[%clk 0:02:21.6]} 19... Bd5
{[%clk 0:01:51.5]} 20. Bc4 {[%clk 0:02:21.3]} 20... Bc6 {[%clk 0:01:51.7]} 21.
Rfd1 {[%clk 0:02:16.7]} 21... Qf5 {[%clk 0:01:48.8]} 22. Bxf6 {[%clk 0:02:00.2]}
22... Bxf6 {[%clk 0:01:47.5]} 23. Bb5 {[%clk 0:02:01.7]} 23... Bh4 {[%clk
0:01:44.7]} 24. g3 {[%clk 0:01:49.1]} 24... Bf6 {[%clk 0:01:07.2]} 25. Bxc6
{[%clk 0:01:41.4]} 25... bxc6 {[%clk 0:01:08.7]} 26. Qc4 {[%clk 0:01:33.5]}
26... Rab8 {[%clk 0:01:07.1]} 27. Rab1 {[%clk 0:01:28]} 27... Qxh3 {[%clk
0:01:06]} 28. Ne4 {[%clk 0:01:24.6]} 28... h5 {[%clk 0:01:02.1]} 29. Qxc5 {[%clk
0:01:06]} 29... h4 {[%clk 0:00:57.1]} 30. Nxf6+ {[%clk 0:00:55.7]} 30... exf6
{[%clk 0:00:57.6]} 31. gxh4 {[%clk 0:00:56.6]} 31... Qg4+ {[%clk 0:00:53.7]} 32.
Kf1 {[%clk 0:00:57.1]} 32... Qxh4 {[%clk 0:00:54.8]} 33. Qd4 {[%clk 0:00:55.9]}
33... Qh3+ {[%clk 0:00:52.8]} 34. Ke2 {[%clk 0:00:56]} 34... Qh5+ {[%clk
0:00:52.8]} 35. Ke1 {[%clk 0:00:55.8]} 35... Kg7 {[%clk 0:00:47.8]} 36. Qf4
{[%clk 0:00:38.7]} 36... Rbd8 {[%clk 0:00:42.6]} 37. Qc7 {[%clk 0:00:31.2]}
37... Qf5 {[%clk 0:00:31.2]} 38. Rbc1 {[%clk 0:00:25.4]} 38... Rc8 {[%clk
0:00:30.3]} 39. Qd7 {[%clk 0:00:23.6]} 39... Qf3 {[%clk 0:00:28.3]} 40. Qd3
{[%clk 0:00:19.1]} 40... Rh8 {[%clk 0:00:22.9]} 41. Rb1 {[%clk 0:00:07.4]} 41...
Rce8 {[%clk 0:00:17.2]} 42. Kd2 {[%clk 0:00:03.2]} 42... Rd8 {[%clk 0:00:17.1]}
0-1

[Event "*** Titled Tuesday Blitz"]
[Site "Chess.com"]
[Date "2018.06.05"]
[Round "10"]
[White "Zufi1811"]
[Black "Supernotar"]
[Result "1-0"]
[WhiteElo "2474"]
[BlackElo "2441"]
[TimeControl "180+2"]
[EndTime "15:25:55 PDT"]
[Termination "Zufi1811 won by checkmate"]

1. e4 {[%clk 0:03:01.9]} 1... c6 {[%clk 0:03:00.5]} 2. d4 {[%clk 0:03:01]} 2...
d5 {[%clk 0:02:57.9]} 3. f3 {[%clk 0:03:02.5]} 3... dxe4 {[%clk 0:02:58.2]} 4.
fxe4 {[%clk 0:03:04.4]} 4... e5 {[%clk 0:02:59.8]} 5. Nf3 {[%clk 0:03:05.2]}
5... Bg4 {[%clk 0:03:00.2]} 6. c3 {[%clk 0:03:03.5]} 6... Nd7 {[%clk 0:02:59.9]}
7. Bc4 {[%clk 0:02:59.1]} 7... Ngf6 {[%clk 0:02:53.6]} 8. O-O {[%clk 0:02:57.1]}
8... b5 {[%clk 0:02:47.7]} 9. Bb3 {[%clk 0:02:55.2]} 9... Bd6 {[%clk 0:02:45.6]}
10. Bg5 {[%clk 0:02:49.9]} 10... Qc7 {[%clk 0:02:43.4]} 11. h3 {[%clk
0:02:44.2]} 11... Bh5 {[%clk 0:02:43]} 12. Nbd2 {[%clk 0:02:43]} 12... O-O
{[%clk 0:02:39.7]} 13. Qe1 {[%clk 0:02:38.5]} 13... Bg6 {[%clk 0:02:31.7]} 14.
Qh4 {[%clk 0:02:25.5]} 14... exd4 {[%clk 0:02:30.9]} 15. e5 {[%clk 0:02:15.4]}
15... Nxe5 {[%clk 0:02:19.7]} 16. Bxf6 {[%clk 0:02:14.7]} 16... gxf6 {[%clk
0:02:20.5]} 17. Qxf6 {[%clk 0:02:13.8]} 17... dxc3 {[%clk 0:02:12.2]} 18. bxc3
{[%clk 0:02:10.8]} 18... Rae8 {[%clk 0:02:08.9]} 19. Nd4 {[%clk 0:01:50.2]}
19... Be7 {[%clk 0:01:54.1]} 20. Qf4 {[%clk 0:01:44.5]} 20... Bd6 {[%clk
0:01:47.5]} 21. Qh6 {[%clk 0:01:45.9]} 21... Bc5 {[%clk 0:01:28.3]} 22. Kh1
{[%clk 0:01:44]} 22... Bxd4 {[%clk 0:01:29]} 23. cxd4 {[%clk 0:01:45.7]} 23...
Nd3 {[%clk 0:01:29.3]} 24. Rf6 {[%clk 0:01:23.8]} 24... Qg3 {[%clk 0:01:29.5]}
25. Nf1 {[%clk 0:01:14.1]} 25... Re1 {[%clk 0:00:35.3]} 26. Rxe1 {[%clk
0:01:13.9]} 26... Qxe1 {[%clk 0:00:35.7]} 27. Rxg6+ {[%clk 0:01:14.3]} 27...
hxg6 {[%clk 0:00:36.4]} 28. Qxg6+ {[%clk 0:01:16.2]} 28... Kh8 {[%clk
0:00:37.7]} 29. Qxd3 {[%clk 0:01:10.5]} 29... Qf2 {[%clk 0:00:28.4]} 30. Kh2
{[%clk 0:00:57.2]} 30... Rg8 {[%clk 0:00:28.7]} 31. Ng3 {[%clk 0:00:56.1]} 31...
Qf4 {[%clk 0:00:26.6]} 32. Bxf7 {[%clk 0:00:32.5]} 32... Qxf7 {[%clk 0:00:26.6]}
33. Nf5 {[%clk 0:00:26.8]} 33... Rg5 {[%clk 0:00:24.3]} 34. g4 {[%clk
0:00:27.6]} 34... Qc7+ {[%clk 0:00:24.6]} 35. Kg2 {[%clk 0:00:28.8]} 35... Qf4
{[%clk 0:00:25.3]} 36. Ng3 {[%clk 0:00:15]} 36... Rd5 {[%clk 0:00:23.7]} 37. Ne2
{[%clk 0:00:12.3]} 37... Qf6 {[%clk 0:00:21]} 38. Qe4 {[%clk 0:00:12.6]} 38...
Kg7 {[%clk 0:00:20.5]} 39. Nf4 {[%clk 0:00:11]} 39... Kf7 {[%clk 0:00:20.6]} 40.
Nxd5 {[%clk 0:00:09.3]} 40... cxd5 {[%clk 0:00:21.9]} 41. Qxd5+ {[%clk
0:00:10.8]} 41... Kf8 {[%clk 0:00:20.8]} 42. Qa8+ {[%clk 0:00:10.3]} 42... Kg7
{[%clk 0:00:21.6]} 43. Qxa7+ {[%clk 0:00:11.7]} 43... Kh6 {[%clk 0:00:22.4]} 44.
Qc5 {[%clk 0:00:11.7]} 44... Qf4 {[%clk 0:00:21]} 45. Qh5+ {[%clk 0:00:10.4]}
45... Kg7 {[%clk 0:00:21.8]} 46. Qe5+ {[%clk 0:00:12.3]} 46... Qxe5 {[%clk
0:00:22.8]} 47. dxe5 {[%clk 0:00:14.1]} 47... b4 {[%clk 0:00:23.9]} 48. Kf3
{[%clk 0:00:14.8]} 48... Kf7 {[%clk 0:00:25.3]} 49. Ke4 {[%clk 0:00:15.2]} 49...
b3 {[%clk 0:00:26.8]} 50. axb3 {[%clk 0:00:15.3]} 50... Kg6 {[%clk 0:00:28.7]}
51. b4 {[%clk 0:00:17.2]} 51... Kg5 {[%clk 0:00:30.5]} 52. b5 {[%clk 0:00:16.2]}
52... Kh4 {[%clk 0:00:32.4]} 53. b6 {[%clk 0:00:17.8]} 53... Kxh3 {[%clk
0:00:34.3]} 54. b7 {[%clk 0:00:19]} 54... Kxg4 {[%clk 0:00:36.2]} 55. b8=Q
{[%clk 0:00:20.4]} 55... Kg3 {[%clk 0:00:38.1]} 56. Qf8 {[%clk 0:00:20.6]} 56...
Kg2 {[%clk 0:00:39.3]} 57. Qf3+ {[%clk 0:00:20.8]} 57... Kg1 {[%clk 0:00:40.2]}
58. Qe2 {[%clk 0:00:21.6]} 58... Kh1 {[%clk 0:00:41.6]} 59. Kf3 {[%clk 0:00:23]}
59... Kg1 {[%clk 0:00:43.5]} 60. Qg2# {[%clk 0:00:23.9]} 1-0